bitfinex/quotes_ETHUSD_20240810
["timestamp","ask_amount","ask_price","bid_price","bid_amount"]
[1723286461874,1.89862,2633.5,2633.1,2.324]
[1723286463418,1.89872,2633.4,2633.1,2.324]
[1723286464305,0.379731,2633.4,2632.8,2.324]
[1723286464614,0.379731,2633.4,2632.5,7.49]
[1723286464615,1.89894,2633.1,2632.5,2.324]
[1723286464803,2.3854,2633.3,2632.5,2.324]
[1723286464804,1.8991,2632.9,2632.5,2.324]
[1723286465003,1.89917,2632.8,2632.2,2.324]
[1723286465204,1.89923,2632.7,2632.2,2.324]
[1723286466718,3.79834,2632.8,2632.2,2.324]
[1723286466918,1.89919,2632.7,2632.2,2.324]
[1723286467140,1.89927,2632.6,2632.2,2.324]
[1723286467344,1.89938,2632.5,2632.2,2.324]
[1723286467617,1.8994,2632.4,2632.0,2.4781]
[1723286467822,3.7988,2632.4,2632.0,2.4781]
[1723286468038,3.7988,2632.4,2631.7,9.9681]
[1723286468242,3.7988,2632.4,2631.7,11.86801]
[1723286469317,1.8994,2632.4,2631.7,11.86801]
[1723286470418,1.89935,2632.5,2631.8,1.89977]
[1723286470647,3.0,2632.6,2632.2,4.3776]
[1723286470856,1.89916,2632.8,2632.2,4.3776]
[1723286471017,4.89916,2632.8,2632.2,4.3776]
[1723286472134,4.89916,2632.8,2632.4,0.12777108]
[1723286472334,3.0,2632.8,2632.4,0.12777108]
[1723286472532,1.89907,2632.9,2632.4,0.12777108]
[1723286472759,1.89907,2632.9,2632.4,2.02717108]
[1723286473058,1.89907,2632.9,2632.4,0.12777108]
[1723286474553,3.79816,2632.9,2632.4,0.12777108]
[1723286474755,4.89911,2632.8,2632.4,0.12777108]
[1723286474942,3.0,2633.0,2632.4,0.12777108]
[1723286475138,1.89893,2633.1,2632.4,0.12777108]
[1723286475340,1.89902,2633.0,2632.4,2.02716108]
[1723286475667,4.89902,2633.0,2632.4,2.6685283]
[1723286476586,3.0,2633.0,2632.7,1.89914]
[1723286476746,3.0,2633.2,2632.7,1.89914]
[1723286477084,3.0,2633.2,2632.8,0.12777295]
[1723286477292,4.89883,2633.2,2632.8,0.52798125]
[1723286477457,4.89883,2633.2,2632.8,0.12777295]
[1723286477652,4.89883,2633.2,2632.6,3.79842]
[1723286477653,3.0,2633.2,2632.6,3.79842]
[1723286477977,1.89877,2633.3,2632.7,0.75548138]
[1723286478186,3.79758,2633.3,2632.7,0.75548138]
[1723286478345,4.89883,2633.2,2632.7,0.75548138]
[1723286478682,3.0,2633.1,2632.7,0.75548138]
[1723286478859,3.0,2633.1,2632.8,0.26546914]
[1723286479053,3.0,2633.2,2632.8,0.26546914]
[1723286479260,1.89877,2633.3,2632.9,0.1276057]
[1723286480384,1.89895,2633.1,2632.9,0.1276057]
[1723286480581,1.89895,2633.1,2632.5,4.37738]
[1723286480785,1.89895,2633.1,2633.0,0.12753696]
[1723286480951,1.899,2633.0,2632.5,2.4781]
[1723286481147,1.899,2633.0,2632.6,0.12776269]
[1723286481492,1.89918,2632.8,2632.2,6.2771]
[1723286481863,3.79802,2633.0,2632.3,1.90835108]
[1723286482191,1.899,2633.0,2632.4,0.12787558]
[1723286482376,3.79803,2633.0,2632.4,0.12787558]
[1723286482554,1.899,2633.0,2632.4,0.12787558]
[1723286483361,1.89905,2632.9,2632.4,0.12787558]
[1723286484429,1.89905,2632.9,2632.4,0.76925825]
[1723286485189,1.89924,2632.7,2632.4,0.12787558]
[1723286486499,1.8993,2632.6,2632.4,0.12787558]
[1723286487061,1.89933,2632.5,2632.4,0.12787558]
[1723286488588,1.8993,2632.6,2632.4,0.12787558]
[1723286489111,3.79861,2632.6,2632.4,0.12787558]
[1723286489810,1.89933,2632.5,2632.4,0.12787558]
[1723286492882,1.8993,2632.6,2632.4,0.12787558]
[1723286493214,3.79861,2632.6,2632.4,0.12787558]
[1723286493711,1.8993,2632.6,2632.4,0.12787558]
[1723286494805,4.89923,2632.7,2632.4,2.61917558]
[1723286496687,1.89927,2632.6,2632.4,2.61917558]
[1723286497121,1.89933,2632.5,2632.4,0.12787558]
[1723286498195,3.79866,2632.5,2632.4,0.12787558]
[1723286498387,1.8994,2632.4,2632.3,0.00892108]
[1723286498709,2.5431422,2632.4,2632.3,0.00892108]
[1723286499022,2.5431422,2632.4,2632.3,0.13719793]
[1723286499223,2.5431422,2632.4,2632.3,0.00892108]
[1723286499697,2.5431422,2632.4,2632.3,0.13719793]
[1723286500723,1.8994,2632.4,2632.3,0.13719793]
[1723286501232,3.7988,2632.4,2632.3,0.13719793]
[1723286501389,6.7988,2632.4,2632.3,0.13719793]
[1723286501589,6.7988,2632.4,2632.3,0.00892108]
[1723286509879,1.8996,2632.2,2631.8,2.4913]
[1723286510267,3.7992,2632.2,2631.9,0.12893379]
[1723286511874,1.8996,2632.2,2631.9,0.12893379]
[1723286512239,3.0,2632.3,2631.9,0.39095717]
[1723286512435,3.0,2632.5,2632.0,4.35099]
[1723286512643,1.8993,2632.6,2632.0,4.35099]
[1723286512840,3.7986,2632.6,2632.1,2.58010237]
[1723286513072,3.0,2632.5,2632.1,2.58010237]
[1723286513245,3.0,2632.5,2632.2,0.44797924]
[1723286513577,1.8993,2632.6,2632.3,0.12868946]
[1723286513941,1.8993,2632.6,2632.2,0.44797924]
[1723286514142,1.8993,2632.6,2632.3,0.12868946]
[1723286514384,1.8993,2632.6,2632.2,0.44797924]
[1723286514627,1.8993,2632.6,2632.3,0.12868946]
[1723286514628,3.79861,2632.6,2632.3,0.12868946]
[1723286514793,3.0,2632.5,2632.3,0.12868946]
[1723286514992,3.0,2632.5,2632.2,0.44797924]
[1723286515195,3.0,2632.5,2632.4,0.12863301]
[1723286515394,1.8993,2632.6,2632.3,0.12868946]
[1723286515719,3.0,2632.7,2632.5,2.4513]
[1723286516016,2.49433993,2632.8,2632.6,0.12852012]
[1723286516317,1.89919,2632.7,2632.6,0.12852012]
[1723286516513,4.89919,2632.7,2632.6,0.12852012]
[1723286517013,3.0,2632.7,2632.6,0.12852012]
[1723286517216,0.59519993,2632.8,2632.6,0.12852012]
[1723286517437,4.89906,2632.9,2632.6,0.12852012]
[1723286518998,1.89912,2632.8,2632.6,0.12852012]
[1723286520742,1.89912,2632.8,2632.5,2.4513]
[1723286521101,1.89919,2632.7,2632.5,2.4513]
[1723286521437,1.89919,2632.7,2632.6,0.12852012]
[1723286521596,4.89919,2632.7,2632.6,0.12852012]
[1723286521799,1.89919,2632.7,2632.6,0.12852012]
[1723286522495,3.0,2632.9,2632.6,0.12852012]
[1723286522694,1.89901,2633.0,2632.6,0.12852012]
[1723286523544,1.89912,2632.8,2632.6,0.12852012]
[1723286524039,4.89912,2632.8,2632.6,0.12852012]
[1723286524913,3.0,2632.8,2632.6,0.12852012]
[1723286525120,4.136,2632.9,2632.6,0.38650213]
[1723286525538,3.0,2632.9,2632.6,0.38650213]
[1723286525741,3.03504,2632.9,2632.6,0.12852012]
[1723286525947,3.0,2632.8,2632.6,0.12852012]
[1723286526249,3.0,2632.9,2632.6,0.12852012]
[1723286526414,3.03501,2633.0,2632.6,0.39408847]
[1723286526615,4.93404,2633.0,2632.6,0.39408847]
[1723286526816,3.03501,2633.0,2632.6,0.39408847]
[1723286527413,4.93403,2633.0,2632.6,0.39408847]
[1723286528517,3.03501,2633.0,2632.6,0.39408847]
[1723286528718,1.8989,2633.1,2632.8,2.4845]
[1723286528941,1.89897,2633.0,2632.9,0.12806755]
[1723286529131,4.89897,2633.0,2632.9,0.12806755]
[1723286532517,3.0,2633.0,2632.9,0.12806755]
[1723286532717,4.136,2633.1,2632.9,0.12806755]
[1723286532912,6.03491,2633.1,2632.9,0.12806755]
[1723286538142,1.89897,2633.0,2632.9,0.12806755]
[1723286538345,4.89897,2633.0,2632.9,0.12806755]
[1723286538669,2.99107892,2633.0,2632.9,0.12806755]
[1723286539671,4.89004892,2633.0,2632.9,0.12806755]
[1723286540044,2.99107892,2633.0,2632.9,0.12806755]
[1723286540569,2.99107892,2633.0,2632.9,0.41777819]
[1723286540944,1.89891,2633.1,2632.9,0.41777819]
[1723286541880,3.79788,2633.1,2632.9,0.41777819]
[1723286542099,3.0,2633.0,2632.9,0.12806755]
[1723286542761,1.89891,2633.1,2632.9,0.12806755]
[1723286546687,3.79786,2633.1,2632.9,0.12806755]
[1723286546885,3.0,2633.0,2632.9,0.12806755]
[1723286547588,1.89891,2633.1,2632.9,0.12806755]
[1723286551294,3.79786,2633.1,2632.9,0.12806755]
[1723286551496,3.0,2633.0,2632.9,0.12806755]
[1723286551706,3.79786,2633.1,2632.9,0.12806755]
[1723286552022,3.0,2633.0,2632.9,0.12806755]
[1723286552321,1.89891,2633.1,2632.9,0.12806755]
[1723286552896,3.79787,2633.1,2632.9,0.12806755]
[1723286553218,3.0,2633.0,2632.9,0.12806755]
[1723286555548,1.8985,2633.7,2633.1,1.89883]
[1723286555688,1.89836,2633.9,2633.3,1.136]
[1723286555883,1.89836,2633.9,2633.5,2.362]
[1723286556202,3.79673,2633.9,2633.6,0.12730931]
[1723286556614,1.89836,2633.9,2633.6,0.12730931]
[1723286556786,0.59518528,2634.0,2633.6,0.12730931]
[1723286556990,1.8982,2634.1,2633.7,2.362]
[1723286557191,1.8982,2634.1,2633.8,0.12696259]
[1723286557392,1.8982,2634.1,2633.7,2.362]
[1723286557587,1.8982,2634.1,2633.8,0.12651942]
[1723286557823,1.8982,2634.1,2633.7,2.362]
[1723286558027,1.8982,2634.1,2633.9,0.12646304]
[1723286558226,1.8982,2634.1,2633.8,0.12651942]
[1723286558411,1.8982,2634.1,2634.0,0.12640665]
[1723286558589,3.79644,2634.1,2633.7,2.362]
[1723286558795,3.79644,2634.1,2633.8,0.12651942]
[1723286558991,1.89832,2634.0,2633.7,2.362]
[1723286559208,1.89841,2633.8,2633.3,2.362]
[1723286559528,1.89784,2634.6,2632.9,2.362]
[1723286559529,1.89864,2633.5,2632.9,2.362]
[1723286559706,1.8988,2633.3,2632.9,2.362]
[1723286560096,3.79762,2633.3,2632.9,2.362]
[1723286560293,1.89884,2633.2,2632.9,2.362]
[1723286560521,1.8988,2633.3,2632.9,2.362]
[1723286561605,3.79761,2633.3,2633.0,0.12234937]
[1723286562003,1.8988,2633.3,2632.9,2.362]
[1723286562926,1.8988,2633.3,2633.0,0.12234937]
[1723286563331,1.8989,2633.1,2632.9,2.362]
[1723286565144,1.8988,2633.3,2632.9,2.362]
[1723286566138,3.0,2633.4,2632.9,4.687128]
[1723286566299,2.49370028,2633.5,2632.9,4.687128]
[1723286566497,1.89865,2633.5,2632.9,4.687128]
[1723286566926,1.89865,2633.5,2632.9,4.687118]
[1723286567099,1.89865,2633.5,2632.9,4.687108]
[1723286567435,3.0,2633.6,2633.1,1.89885]
[1723286567642,4.89854,2633.6,2633.2,2.4984]
[1723286568133,3.0,2633.6,2633.2,2.4984]
[1723286568444,1.89849,2633.7,2633.2,2.4984]
[1723286569247,1.89861,2633.5,2633.2,2.4984]
[1723286569802,3.0,2633.6,2633.2,2.4984]
[1723286570653,1.89862,2633.5,2633.2,2.4984]
[1723286572655,1.89868,2633.4,2632.9,2.4984]
[1723286572811,1.89868,2633.4,2632.9,3.12807]
[1723286573958,1.89862,2633.5,2632.9,3.12807]
[1723286575551,3.79728,2633.5,2632.9,3.12807]
[1723286576047,1.89862,2633.5,2632.9,5.02709]
[1723286576206,2.49338076,2633.9,2633.0,2.57435222]
[1723286576407,2.49338076,2633.9,2633.2,2.4984]
[1723286576621,1.89835,2633.9,2633.4,2.4984]
[1723286577048,1.89835,2633.9,2633.5,0.12243654]
[1723286578022,3.0,2634.0,2633.5,0.12243654]
[1723286578341,1.89821,2634.1,2633.6,2.4984]
[1723286578650,1.89821,2634.1,2633.7,0.12232374]
[1723286579528,1.89826,2634.0,2633.7,0.12232374]
[1723286579936,4.89826,2634.0,2633.7,0.12232374]
[1723286581757,3.0,2634.0,2633.7,0.12232374]
[1723286582053,1.89821,2634.1,2633.7,0.58184972]
[1723286584312,1.89821,2634.1,2633.7,0.12232374]
[1723286585451,1.89826,2634.0,2633.7,0.12232374]
[1723286585754,1.89839,2633.8,2633.7,0.12232374]
[1723286588662,1.89849,2633.7,2633.4,2.4387]
[1723286589048,1.89839,2633.8,2633.4,2.4387]
[1723286589254,3.5306,2633.7,2632.9,2.4387]
[1723286590573,1.89871,2633.4,2632.9,2.4387]
[1723286590779,1.89856,2633.6,2632.9,4.33768]
[1723286591175,1.89866,2633.5,2632.9,4.33768]
[1723286591355,1.89866,2633.5,2633.0,0.547268]
[1723286592157,1.89866,2633.5,2633.1,0.12215144]
[1723286594689,1.89856,2633.6,2633.1,0.12215144]
[1723286595882,3.79715,2633.6,2633.1,0.12215144]
[1723286596181,1.89856,2633.6,2633.1,0.12215144]
[1723286597073,1.89856,2633.6,2633.1,0.81275738]
[1723286597464,1.89843,2633.8,2633.2,2.4387]
[1723286597673,4.89843,2633.8,2633.2,4.41342956]
[1723286597864,4.89843,2633.8,2633.3,0.12219245]
[1723286598063,4.89843,2633.8,2633.3,0.76564365]
[1723286598372,4.89843,2633.8,2633.3,0.6434512]
[1723286598572,4.89843,2633.8,2633.4,0.12213604]
[1723286599054,4.89843,2633.8,2633.5,2.4387]
[1723286599253,4.89843,2633.8,2633.6,0.12202324]
[1723286599850,1.135,2633.9,2633.6,0.12202324]
[1723286599851,1.89829,2634.0,2633.6,0.37809556]
[1723286600054,4.89829,2634.0,2633.6,0.37809556]
[1723286600255,1.89815,2634.2,2633.6,0.37809556]
[1723286600704,1.89819,2634.1,2633.6,0.37809556]
[1723286600868,1.89815,2634.2,2633.6,0.37809556]
[1723286601072,3.79631,2634.2,2633.7,2.4387]
[1723286601388,3.79631,2634.2,2633.7,3.10009156]
[1723286601389,1.89815,2634.2,2633.7,3.10009156]
[1723286601590,1.89815,2634.2,2633.8,0.12211352]
[1723286601789,4.89815,2634.2,2633.8,0.12211352]
[1723286601963,4.89815,2634.2,2633.7,3.10009156]
[1723286602171,1.89815,2634.2,2633.9,0.12205713]
[1723286602373,1.89815,2634.2,2633.8,0.12211352]
[1723286602572,1.89815,2634.2,2634.0,0.12200075]
[1723286602888,1.89815,2634.2,2634.1,0.12194437]
[1723286603364,1.89815,2634.2,2633.7,2.4387]
[1723286603571,1.89815,2634.2,2634.1,0.12194437]
[1723286603771,1.89815,2634.2,2633.7,2.4387]
[1723286603955,1.89815,2634.2,2634.1,0.12194437]
[1723286604469,1.89815,2634.2,2633.7,2.4387]
[1723286604671,1.89815,2634.2,2634.1,0.12194437]
[1723286604877,1.89815,2634.2,2633.7,2.4387]
[1723286605077,1.89815,2634.2,2634.1,0.12194437]
[1723286605287,1.89815,2634.2,2633.7,5.08181628]
[1723286605598,1.89815,2634.2,2634.1,0.12194437]
[1723286605762,1.89815,2634.2,2633.7,4.41307986]
[1723286606096,3.0,2634.3,2633.7,5.15774285]
[1723286606261,3.0,2634.3,2633.8,0.12211352]
[1723286606463,3.0,2634.3,2633.7,5.15774285]
[1723286606795,4.89807,2634.3,2633.9,0.12205713]
[1723286607009,3.0,2634.3,2634.0,2.2934]
[1723286607175,1.89789,2634.5,2634.1,0.419171]
[1723286607372,1.89789,2634.5,2634.0,2.49132313]
[1723286607373,1.89789,2634.5,2634.0,5.52455216]
[1723286607563,3.79556,2634.7,2634.2,0.12145732]
[1723286607902,1.89783,2634.6,2634.3,0.12140095]
[1723286608112,1.8979,2634.5,2634.0,5.32663]
[1723286608410,1.8979,2634.5,2633.8,1.89836]
[1723286608411,1.89822,2634.1,2633.5,2.2934]
[1723286608774,1.89827,2634.0,2633.5,2.2934]
[1723286611682,1.89827,2634.0,2633.5,4.19201]
[1723286611889,1.89827,2634.0,2633.5,2.2934]
[1723286613180,1.89827,2634.0,2633.5,4.192]
[1723286613593,3.79628,2634.2,2633.5,4.914563]
[1723286613793,1.89812,2634.2,2633.6,2.2934]
[1723286614114,3.79627,2634.2,2633.6,2.2934]
[1723286614315,3.79627,2634.2,2633.6,3.4284]
[1723286614620,1.89812,2634.2,2633.6,6.1217093]
[1723286615110,4.89804,2634.3,2633.8,2.2934]
[1723286618514,3.0,2634.3,2633.8,2.2934]
[1723286618725,5.30665,2634.6,2633.9,1.89831]
[1723286618726,3.0,2634.5,2633.9,1.89831]
[1723286618894,3.0,2634.5,2634.0,0.532671]
[1723286619981,3.0,2634.5,2634.1,2.2934]
[1723286621817,1.8979,2634.5,2634.1,2.2934]
[1723286622178,1.8979,2634.5,2634.2,0.12119889]
[1723286623503,1.89803,2634.3,2634.2,0.12119889]
[1723286623827,1.89819,2634.1,2633.5,2.2934]
[1723286624006,1.89833,2633.9,2633.5,2.2934]
[1723286624202,1.89833,2633.9,2633.6,0.12135266]
[1723286633419,3.03319,2634.1,2633.6,0.12135266]
[1723286634313,3.79642,2634.1,2633.6,0.12135266]
[1723286636951,1.89826,2634.0,2633.6,0.12135266]
[1723286643154,1.89819,2634.1,2633.6,0.12135266]
[1723286643449,3.79642,2634.1,2633.6,0.12135266]
[1723286643739,3.79642,2634.1,2633.7,2.4779]
[1723286643740,1.89819,2634.1,2633.7,2.4779]
[1723286643902,1.89819,2634.1,2633.7,2.59943617]
[1723286644744,3.79642,2634.1,2633.7,2.59943617]
[1723286645442,1.89825,2634.0,2633.7,2.59943617]
[1723286646142,3.79644,2634.1,2633.7,2.59943617]
[1723286646344,1.89819,2634.1,2633.7,2.59943617]
[1723286646562,1.89812,2634.2,2633.7,2.59943617]
[1723286646908,1.8982,2634.1,2633.7,2.59943617]
[1723286647522,1.89806,2634.3,2633.8,2.3531]
[1723286647940,3.79614,2634.3,2633.9,0.12137419]
[1723286648559,1.89806,2634.3,2633.9,0.12137419]
[1723286648919,3.0,2634.4,2634.0,2.3531]
[1723286649125,1.89792,2634.5,2634.1,0.12126143]
[1723286649551,3.03276,2634.7,2634.1,0.12126143]
[1723286649733,1.89782,2634.6,2634.1,0.12126143]
[1723286652562,1.8979,2634.5,2634.1,0.12126143]
[1723286652733,1.8979,2634.5,2634.1,0.70436081]
[1723286655244,3.79556,2634.7,2634.2,2.3531]
[1723286655646,1.89776,2634.7,2634.3,0.12103182]
[1723286656020,3.0,2634.8,2634.2,3.4881]
[1723286656226,4.89764,2634.9,2634.4,0.12096316]
[1723286656448,1.89771,2634.8,2634.3,0.71795546]
[1723286656657,4.89771,2634.8,2634.5,0.1209068]
[1723286656856,4.89771,2634.8,2634.4,0.12096316]
[1723286657047,4.89771,2634.8,2634.6,0.12085044]
[1723286657362,1.89764,2634.9,2634.7,0.12079409]
[1723286659659,3.79534,2634.8,2634.7,0.12079409]
[1723286660170,1.89789,2634.5,2634.2,2.3531]
[1723286660520,1.89789,2634.5,2634.3,0.12042296]
[1723286660724,1.89789,2634.5,2634.2,2.3531]
[1723286660953,1.89789,2634.5,2634.3,0.12042296]
[1723286661349,1.89789,2634.5,2634.2,2.3531]
[1723286661550,1.89789,2634.5,2634.4,0.1203666]
[1723286661762,1.89789,2634.5,2634.3,0.12042296]
[1723286661951,1.89789,2634.5,2634.4,0.1203666]
[1723286662367,1.89789,2634.5,2634.2,2.3531]
[1723286662539,1.89789,2634.5,2634.4,0.1203666]
[1723286662741,1.89789,2634.5,2634.3,0.12042296]
[1723286662990,1.89789,2634.5,2634.4,0.1203666]
[1723286663476,1.89789,2634.5,2634.2,2.3531]
[1723286663688,1.89789,2634.5,2634.4,0.1203666]
[1723286663865,1.89789,2634.5,2634.3,0.12042296]
[1723286664072,1.89789,2634.5,2634.4,0.1203666]
[1723286664366,1.89789,2634.5,2634.2,2.3531]
[1723286664583,1.89789,2634.5,2634.4,0.1203666]
[1723286664894,1.89789,2634.5,2634.3,0.12042296]
[1723286665042,1.89789,2634.5,2634.4,0.1203666]
[1723286665383,1.89789,2634.5,2634.2,2.3531]
[1723286665581,1.89789,2634.5,2634.4,0.1203666]
[1723286665891,1.89789,2634.5,2634.3,0.12042296]
[1723286666043,1.89789,2634.5,2634.4,0.1203666]
[1723286666437,1.89782,2634.6,2634.2,2.3531]
[1723286666641,1.89782,2634.6,2634.4,0.1203666]
[1723286666878,1.89782,2634.6,2634.3,0.12060744]
[1723286667050,1.89782,2634.6,2634.5,0.12048856]
[1723286667268,1.89782,2634.6,2634.4,0.12054493]
[1723286667584,1.89782,2634.6,2634.5,0.12045782]
[1723286667988,1.89782,2634.6,2634.2,2.77823]
[1723286668143,1.89782,2634.6,2634.5,0.12045782]
[1723286668343,1.89782,2634.6,2634.2,2.77823]
[1723286668544,3.0327,2634.8,2634.5,0.12045782]
[1723286668745,4.93043,2634.8,2634.2,2.77823]
[1723286668970,4.93043,2634.8,2634.6,0.12040146]
[1723286669182,1.89776,2634.7,2634.2,2.3531]
[1723286669488,1.89784,2634.6,2634.2,2.3531]
[1723286671452,1.89784,2634.6,2634.0,2.2842]
[1723286671453,1.135,2634.6,2634.0,2.2842]
[1723286671659,1.89845,2633.8,2633.3,7.49]
[1723286671865,1.135,2634.2,2633.3,2.2842]
[1723286671866,1.89852,2633.7,2633.3,2.2842]
[1723286672072,1.89866,2633.5,2633.0,2.2842]
[1723286672384,1.89869,2633.4,2633.0,2.2842]
[1723286673288,1.89866,2633.5,2633.0,2.2842]
[1723286673456,1.89849,2633.7,2633.0,5.46399]
[1723286673852,1.89849,2633.7,2633.1,1.8989]
[1723286674684,4.89835,2633.9,2633.3,2.2842]
[1723286674850,6.79674,2633.9,2633.3,4.18295]
[1723286675047,5.7447916,2633.9,2633.3,2.2842]
[1723286675246,1.135,2633.8,2633.0,2.2842]
[1723286675453,1.89877,2633.3,2633.0,2.2842]
[1723286676250,1.89866,2633.5,2633.0,2.2842]
[1723286676466,1.89869,2633.4,2633.0,2.2842]
[1723286676893,1.89866,2633.5,2633.0,2.2842]
[1723286677384,1.89876,2633.3,2633.0,2.2842]
[1723286678683,1.89866,2633.5,2633.0,2.2842]
[1723286679088,3.79732,2633.5,2633.0,2.2842]
[1723286679287,1.89847,2633.7,2633.0,5.464001]
[1723286680365,1.89855,2633.6,2633.0,5.464001]
[1723286680553,4.89855,2633.6,2633.0,5.464001]
[1723286681267,4.89855,2633.6,2633.0,6.599001]
[1723286682086,3.0,2633.6,2633.2,2.2842]
[1723286682256,4.89847,2633.7,2633.2,2.2842]
[1723286682459,4.89847,2633.7,2633.3,0.11391653]
[1723286682796,1.89835,2633.9,2633.4,2.2842]
[1723286682951,6.79673,2633.9,2633.4,2.39806013]
[1723286683158,1.89841,2633.8,2633.4,2.39806013]
[1723286683370,4.89841,2633.8,2633.4,2.39806013]
[1723286684299,3.0,2633.8,2633.4,2.39806013]
[1723286684600,4.89833,2633.9,2633.4,2.39806013]
[1723286685593,4.89833,2633.9,2633.4,3.13111414]
[1723286685594,3.0,2633.9,2633.4,3.13111414]
[1723286685890,3.0,2634.0,2633.4,6.16474414]
[1723286686054,1.8983,2634.0,2633.4,6.16474414]
[1723286686649,1.8983,2634.0,2633.4,5.02974414]
[1723286688300,1.8983,2634.0,2633.5,0.69284441]
[1723286688657,1.8983,2634.0,2633.6,0.11413386]
[1723286689267,1.89832,2633.9,2633.6,0.11413386]
[1723286689563,4.89821,2634.1,2633.6,0.11413386]
[1723286690365,4.89821,2634.1,2633.7,2.4198]
[1723286690776,4.89821,2634.1,2633.8,0.11402107]
[1723286691094,6.79645,2634.1,2633.8,0.11402107]
[1723286691410,6.79644,2634.1,2633.9,0.11396468]
[1723286691777,6.79644,2634.1,2633.7,2.4198]
[1723286692615,6.79644,2634.1,2633.8,0.11402107]
[1723286692975,1.89826,2634.0,2633.7,2.4198]
[1723286693199,1.89834,2633.9,2633.4,2.4198]
[1723286693505,1.89848,2633.7,2633.4,2.4198]
[1723286697125,1.89834,2633.9,2633.4,2.4198]
[1723286697280,1.89834,2633.9,2633.5,0.11419026]
[1723286698518,3.79671,2633.9,2633.5,0.11419026]
[1723286698717,4.89821,2634.1,2633.6,2.4198]
[1723286699095,1.89839,2633.8,2633.7,0.11406519]
[1723286699294,1.89839,2633.8,2633.3,2.4198]
[1723286699295,1.89858,2633.6,2633.3,2.4198]
[1723286699497,1.89863,2633.5,2633.3,2.4198]
[1723286699695,1.89863,2633.5,2633.4,0.11423439]
[1723286699891,1.89863,2633.5,2633.1,2.4198]
[1723286700231,1.89869,2633.4,2633.2,0.11406487]
[1723286700516,1.89857,2633.6,2633.2,0.11406487]
[1723286702432,1.89862,2633.5,2633.2,0.11406487]
[1723286702935,1.8987,2633.4,2633.2,0.11406487]
[1723286703149,3.7975,2633.3,2633.2,0.11406487]
[1723286703638,1.89894,2633.1,2632.8,2.4198]
[1723286703808,1.89894,2633.1,2632.6,2.4198]
[1723286704204,3.7979,2633.1,2632.6,2.4198]
[1723286704544,1.89879,2633.3,2632.6,2.4198]
[1723286704706,1.89879,2633.3,2632.7,0.545408]
[1723286705574,1.89864,2633.5,2632.8,2.403]
[1723286705725,1.89864,2633.5,2632.9,1.89904]
[1723286705921,4.89864,2633.5,2632.9,1.89904]
[1723286706522,1.8987,2633.4,2632.9,1.89904]
[1723286706861,4.8987,2633.4,2632.8,2.403]
[1723286707159,5.80207,2633.4,2632.8,2.403]
[1723286707963,7.70081,2633.4,2632.8,2.403]
[1723286708135,6.79744,2633.4,2632.8,2.403]
[1723286709125,7.3889,2633.4,2632.8,2.403]
[1723286709327,1.6949,2633.4,2632.8,2.403]
[1723286709647,1.89883,2633.2,2632.8,2.403]
[1723286711304,3.79747,2633.4,2632.8,2.403]
[1723286711474,1.89873,2633.4,2632.9,0.543716]
[1723286712064,3.79747,2633.4,2633.0,0.11091191]
[1723286712566,1.89873,2633.4,2633.0,0.11091191]
[1723286713312,1.89858,2633.6,2633.1,2.403]
[1723286713603,1.89858,2633.6,2633.2,0.1109093]
[1723286713786,1.89861,2633.5,2633.2,0.1109093]
[1723286713996,1.8987,2633.4,2633.2,0.1109093]
[1723286716106,1.89858,2633.6,2633.2,0.1109093]
[1723286716279,1.89858,2633.6,2633.2,0.58276851]
[1723286716879,1.89842,2633.8,2633.3,2.403]
[1723286717380,2.4902,2634.2,2633.2,2.0096593]
[1723286717381,1.89815,2634.2,2633.6,2.403]
[1723286717589,1.89815,2634.2,2633.7,0.3538]
[1723286717870,3.03315,2634.2,2633.7,0.11062728]
[1723286718067,1.89826,2634.0,2633.7,0.11062728]
[1723286718400,1.89815,2634.2,2633.8,2.403]
[1723286718604,3.79632,2634.2,2633.8,2.403]
[1723286718807,1.89819,2634.1,2633.9,0.1105145]
[1723286719392,1.89815,2634.2,2633.9,0.1105145]
[1723286721473,0.59488934,2634.3,2633.9,0.1105145]
[1723286722287,0.59488934,2634.3,2633.9,0.66520395]
[1723286722814,0.59488934,2634.3,2634.0,1.8982]
[1723286722982,1.89777,2634.7,2634.1,2.403]
[1723286723321,1.89777,2634.7,2634.1,3.64840174]
[1723286723474,1.89777,2634.7,2634.2,2.95766017]
[1723286723822,1.89777,2634.7,2634.3,0.10935836]
[1723286724175,0.59477738,2634.9,2634.3,4.301]
[1723286724396,3.59477738,2634.9,2634.4,0.10929587]
[1723286724600,0.59477738,2634.9,2634.5,2.403]
[1723286724784,0.00791402,2635.1,2634.6,1.89777]
[1723286724986,0.00791402,2635.1,2634.7,2.403]
[1723286725483,0.00791402,2635.1,2634.8,0.10890521]
[1723286725797,0.00791402,2635.1,2634.7,4.30074]
[1723286725978,0.00791402,2635.1,2634.9,0.10870813]
[1723286726310,0.00791402,2635.1,2634.8,0.10876447]
[1723286726515,0.00791402,2635.1,2635.0,0.10865179]
[1723286726722,0.00791402,2635.1,2634.9,0.10870813]
[1723286727010,0.00791402,2635.1,2635.0,0.10865179]
[1723286727414,0.00791402,2635.1,2634.7,2.403]
[1723286727618,0.00791402,2635.1,2635.0,0.10865179]
[1723286727805,0.00791402,2635.1,2634.7,2.403]
[1723286728122,0.00791402,2635.1,2635.0,0.10865179]
[1723286728284,1.90539402,2635.1,2634.7,2.403]
[1723286728619,0.00791402,2635.1,2634.7,2.403]
[1723286728832,0.00791402,2635.1,2634.8,0.10876447]
[1723286729219,0.00791402,2635.1,2634.7,2.403]
[1723286729404,0.00791402,2635.1,2634.9,0.10870813]
[1723286729589,0.00791402,2635.1,2634.8,0.10876447]
[1723286730832,0.00791402,2635.1,2635.0,0.10865179]
[1723286731028,0.00791402,2635.1,2634.7,2.833083]